bitfinex/quotes_ETHUSD_20260106
["timestamp","ask_amount","ask_price","bid_price","bid_amount"]
[1767685012946,0.001,3215.6,3214.8,0.98371304]
[1767685018246,0.23986696,3215.6,3214.8,4.18352]
[1767685018446,0.23986696,3215.6,3214.5,0.98521965]
[1767685018447,0.23986696,3215.6,3214.5,0.815]
[1767685018652,0.001,3215.6,3214.7,0.98521965]
[1767685019379,0.23986696,3215.6,3214.7,0.98521965]
[1767685019674,0.001,3215.3,3214.7,0.98521965]
[1767685019968,0.001,3215.3,3214.7,0.98321965]
[1767685020171,0.001,3215.3,3214.8,0.98521965]
[1767685022596,0.001,3215.3,3214.8,4.09581302]
[1767685022795,0.001,3215.3,3214.6,0.99171737]
[1767685022966,0.24186696,3215.3,3214.3,0.99171737]
[1767685024569,0.24086696,3215.1,3214.2,0.002]
[1767685024785,0.88699894,3215.0,3214.2,0.002]
[1767685026799,6.2210333,3214.9,3214.2,0.002]
[1767685027768,3.11051665,3214.9,3214.2,0.002]
[1767685028698,6.2210333,3214.9,3214.2,0.002]
[1767685030400,3.11051665,3214.9,3214.2,0.002]
[1767685030605,6.93182841,3214.9,3214.2,0.002]
[1767685030900,7.17269537,3214.9,3214.2,0.002]
[1767685031107,0.24086696,3214.8,3214.2,0.002]
[1767685031416,0.24086696,3214.8,3214.5,0.002]
[1767685031628,0.24086696,3214.8,3214.2,0.002]
[1767685031629,1.05586696,3214.8,3214.2,0.002]
[1767685031810,0.71726954,3214.7,3214.2,0.002]
[1767685032116,0.24086696,3214.6,3213.9,0.002]
[1767685032912,6.22180742,3214.5,3213.9,0.002]
[1767685034171,0.24086696,3214.4,3213.4,0.99171737]
[1767685034483,0.8630477,3214.4,3213.4,0.99171737]
[1767685035482,6.22219456,3214.3,3213.4,0.99171737]
[1767685036383,0.24086696,3214.2,3213.1,0.99171737]
[1767685037089,6.22219456,3214.3,3213.2,0.99171737]
[1767685037491,6.22219456,3214.3,3213.4,0.99171737]
[1767685043535,6.22219456,3214.3,3213.7,0.002]
[1767685044940,0.97588756,3214.2,3213.4,0.002]
[1767685045310,0.97588756,3214.0,3213.4,0.002]
[1767685047242,6.22296896,3213.9,3213.4,0.002]
[1767685047412,7.19885652,3213.9,3213.4,0.002]
[1767685047911,6.22296896,3213.9,3213.4,0.002]
[1767685048114,0.97588756,3213.8,3213.4,0.002]
[1767685048314,1.69577321,3213.8,3213.4,0.002]
[1767685048733,1.69577321,3213.8,3212.9,0.99371737]
[1767685050132,6.22335624,3213.7,3212.9,0.99371737]
[1767685051195,7.19661289,3213.7,3212.9,0.99371737]
[1767685051501,0.97325665,3213.6,3212.9,0.002]
[1767685051643,0.97325665,3213.6,3212.6,0.002]
[1767685051644,0.97325665,3213.5,3212.6,0.002]
[1767685052574,0.97325665,3213.3,3212.6,0.002]
[1767685052744,1.78825665,3213.2,3212.6,0.002]
[1767685053274,2.9006729,3213.2,3212.6,0.002]
[1767685053480,0.97325665,3213.1,3212.6,0.002]
[1767685053851,3.11235605,3213.0,3212.6,0.002]
[1767685054062,6.2247121,3213.0,3212.6,0.002]
[1767685055979,3.11235605,3213.0,3212.6,0.002]
[1767685056557,6.2247121,3213.0,3212.6,0.002]
[1767685057674,3.11235605,3213.0,3212.9,0.002]
[1767685057880,7.85562342,3213.0,3212.6,0.002]
[1767685059780,4.08578235,3212.9,3212.6,0.002]
[1767685060478,3.1125257,3212.9,3212.6,0.002]
[1767685061766,3.11235605,3213.0,3212.6,0.002]
[1767685063484,3.11235605,3213.0,3212.5,0.00033204]
[1767685070291,3.11235605,3213.0,3212.8,0.002]
[1767685070492,4.0856127,3213.0,3212.5,0.00033204]
[1767685071500,7.19796875,3213.0,3212.5,0.00033204]
[1767685071699,6.2247121,3213.0,3212.5,0.00033204]
[1767685071898,3.11235605,3213.0,3212.5,0.00033204]
[1767685072794,6.224631,3213.1,3212.5,0.00033204]
[1767685074199,3.11228503,3213.1,3212.5,0.00033204]
[1767685075004,6.224631,3213.1,3212.5,0.00033204]
[1767685076091,0.9882076,3213.0,3212.5,0.00033204]
[1767685077706,6.22490584,3212.9,3212.5,0.00033204]
[1767685079106,3.11245292,3212.9,3212.5,0.00033204]
[1767685080628,6.22476184,3213.0,3212.5,0.00033204]
[1767685082724,6.22476184,3213.0,3212.8,0.002]
[1767685082902,0.70260506,3212.9,3212.5,0.00033204]
[1767685083103,0.001,3212.8,3212.5,0.00033204]
[1767685091171,0.001,3212.8,3212.0,0.002]
[1767685091172,4.64713504,3212.2,3212.0,0.002]
[1767685091323,4.64713504,3212.2,3211.6,0.93993273]
[1767685091844,0.815,3212.1,3211.6,0.93993273]
[1767685092652,3.9282281,3212.1,3211.6,0.93993273]
[1767685092858,4.91429084,3212.1,3211.6,0.93993273]
[1767685093551,4.91429084,3212.1,3211.2,0.002]
[1767685093857,5.8936215,3212.1,3211.3,0.94193273]
[1767685094951,5.8936215,3212.1,3211.9,0.002]
[1767685095158,1.80106274,3212.1,3211.9,0.002]
[1767685095356,0.815,3212.1,3211.5,0.94193273]
[1767685096375,3.9282462,3212.1,3211.5,0.94193273]
[1767685097380,0.815,3212.1,3211.5,0.94193273]
[1767685097875,7.04147276,3212.1,3211.5,0.94193273]
[1767685098068,3.92823638,3212.1,3211.5,0.94193273]
[1767685098267,4.63237328,3212.1,3211.5,0.94193273]
[1767685099982,1.5191369,3212.1,3211.5,0.94193273]
[1767685100170,3.92824224,3212.1,3211.5,0.94193273]
[1767685100368,7.04148448,3212.1,3211.5,0.94193273]
[1767685100590,3.92824224,3212.1,3211.5,0.94193273]
[1767685103518,0.815,3212.1,3211.5,0.94193273]
[1767685103819,3.92822956,3212.1,3211.5,0.94193273]
[1767685104916,3.92822956,3212.1,3211.0,0.002]
[1767685104917,4.64713504,3211.6,3211.0,0.002]
[1767685105094,4.64713504,3211.6,3210.4,0.93993273]
[1767685105095,0.97933066,3211.4,3210.4,0.93993273]
[1767685105289,4.09333433,3211.3,3210.4,0.93993273]
[1767685105494,4.09333433,3211.3,3210.5,0.93993273]
[1767685105712,0.97933066,3211.2,3210.3,0.002]
[1767685105895,0.97933066,3211.2,3210.3,0.94193273]
[1767685106210,0.97933066,3211.2,3210.4,0.93993273]
[1767685106748,0.97933066,3211.1,3210.3,0.002]
[1767685107228,0.97933066,3210.8,3210.3,0.002]
[1767685107415,5.6264657,3210.6,3209.9,0.93781604]
[1767685107603,6.2291712,3210.7,3209.9,0.93781604]
[1767685107810,4.09391626,3210.7,3209.9,0.93781604]
[1767685108322,0.97933066,3210.7,3210.2,0.002]
[1767685109429,3.11468261,3210.6,3210.2,0.002]
[1767685110428,0.97933066,3210.5,3210.2,0.002]
[1767685111560,0.816,3210.9,3210.2,0.93754001]
[1767685112459,0.9873728,3210.8,3210.2,0.002]
[1767685113027,0.9873728,3210.6,3209.6,0.93554001]
[1767685113345,0.9873728,3210.4,3209.3,0.93554001]
[1767685114734,1.8033728,3210.4,3209.3,0.93554001]
[1767685114932,0.9873728,3210.2,3209.3,0.68554001]
[1767685115119,0.9873728,3210.1,3209.3,0.68554001]
[1767685115324,4.10255998,3210.1,3209.3,0.68554001]
[1767685115733,0.9873728,3210.3,3209.5,0.93554001]
[1767685117574,0.9873728,3209.7,3209.1,1.80990542]
[1767685117776,0.9873728,3209.5,3208.5,0.93554001]
[1767685117956,0.9873728,3209.5,3208.6,4.05209209]
[1767685118172,0.816,3209.7,3208.7,0.93554001]
[1767685118394,0.9873728,3210.1,3209.1,0.93554001]
[1767685118552,0.816,3209.8,3209.1,0.93554001]
[1767685118757,0.9873728,3209.7,3209.0,3.11617725]
[1767685119060,3.11471014,3210.6,3209.4,3.11581104]
[1767685119290,3.11471014,3210.6,3209.5,3.11573834]
[1767685119291,0.9873728,3210.5,3209.5,3.11573834]
[1767685119480,0.9873728,3210.5,3209.6,3.42718939]
[1767685120282,0.001,3210.1,3209.6,3.42718939]
[1767685120786,0.001,3210.1,3209.7,0.93554001]
[1767685120983,0.001,3210.1,3209.7,4.08224691]
[1767685121283,0.01847575,3211.3,3209.8,0.93554001]
[1767685121284,3.11426756,3211.1,3209.8,0.93554001]
[1767685121483,0.9873728,3211.2,3210.0,0.93554001]
[1767685121484,0.816,3211.0,3210.0,0.93554001]
[1767685122053,0.9873728,3211.2,3210.0,0.93554001]
[1767685122364,0.816,3211.3,3210.0,0.93554001]
[1767685122775,0.816,3211.3,3210.1,6.2303355]
[1767685122979,0.816,3211.3,3210.2,0.93554001]
[1767685123179,0.816,3211.3,3210.4,0.93554001]
[1767685123357,9.54176448,3212.1,3210.3,0.71658755]
[1767685123358,3.11303427,3212.3,3210.6,0.93554001]
[1767685123683,0.9873728,3212.1,3210.6,0.816]
[1767685124284,0.9873728,3212.1,3210.7,0.93554001]
[1767685125195,4.10069783,3212.0,3210.9,0.93554001]
[1767685125359,0.41006978,3211.9,3210.9,0.93554001]
[1767685126718,0.01847575,3210.5,3209.7,0.93554001]
[1767685126885,0.01847575,3210.5,3209.3,0.816]
[1767685126886,1.00158331,3210.5,3209.3,1.75154001]
[1767685127085,1.00158331,3210.5,3208.9,0.002]
[1767685127086,1.00584855,3210.3,3209.0,0.93554001]
[1767685127288,1.00584855,3210.3,3209.4,0.816]
[1767685127618,1.00584855,3210.3,3209.5,0.816]
[1767685127825,0.01847575,3210.3,3209.6,0.93554001]
[1767685128026,0.01847575,3210.3,3209.7,0.175154]
[1767685128493,3.13346794,3210.3,3209.7,0.175154]
[1767685129403,3.11499219,3210.3,3209.7,0.175154]
[1767685129586,3.13346794,3210.3,3209.7,0.125154]
[1767685131789,3.11488961,3210.4,3209.7,1.09184956]
[1767685131989,3.11488961,3210.4,3209.7,1.06069401]
[1767685132600,0.001,3210.1,3209.7,1.06069401]
[1767685136340,0.001,3210.1,3209.5,0.816]
[1767685137942,0.001,3210.1,3209.4,0.816]
[1767685138947,0.001,3210.1,3209.4,1.7450335]
[1767685141859,0.001,3210.1,3209.5,0.96548451]
[1767685141860,0.01947575,3210.1,3209.5,0.96548451]
[1767685142930,0.001,3210.1,3209.5,1.78148451]
[1767685143132,0.001,3210.1,3209.6,0.96548451]
[1767685145758,0.001,3210.0,3209.8,0.96548451]
[1767685146838,0.001,3210.0,3209.9,0.96548451]
[1767685147161,0.001,3210.1,3210.0,0.96548451]
[1767685147360,3.11468285,3210.6,3209.8,0.84715458]
[1767685147558,3.54206152,3211.9,3209.9,4.08084635]
[1767685147559,0.96732186,3211.0,3209.9,4.08084635]
[1767685147760,0.96732186,3211.0,3210.0,0.96548451]
[1767685148147,0.96732186,3211.0,3210.1,0.816]
[1767685148354,3.1142277,3211.1,3210.2,0.96548451]
[1767685150151,3.1140121,3211.3,3210.3,0.96548451]
[1767685150356,6.22787444,3211.4,3210.5,0.96548451]
[1767685151243,3.11393722,3211.4,3210.7,0.96548451]
[1767685152250,3.11382071,3211.5,3210.7,0.96548451]
[1767685152450,4.08105619,3211.6,3210.7,0.96548451]
[1767685152771,3.11351889,3211.8,3210.9,0.96548451]
[1767685152945,3.56260994,3211.8,3210.9,0.96548451]
[1767685153140,3.56260994,3211.8,3211.1,0.96548451]
[1767685153547,3.11346412,3211.9,3211.1,0.96548451]
[1767685153771,6.22692824,3211.9,3211.1,0.96548451]
[1767685153973,7.1942501,3211.9,3211.2,0.816]
[1767685154176,4.08078598,3211.9,3211.2,0.816]
[1767685154378,4.08078598,3211.9,3211.1,1.78148451]
[1767685154546,4.80019816,3211.9,3211.1,1.78148451]
[1767685155042,0.96732186,3211.8,3211.2,0.816]
[1767685155245,0.96732186,3211.8,3210.7,0.96548451]
[1767685155442,0.96732186,3211.8,3210.8,0.816]
[1767685156779,0.96732186,3211.6,3210.8,0.816]
[1767685156981,0.71945535,3211.5,3210.8,0.816]
[1767685157387,0.71945535,3211.5,3210.7,0.96548451]
[1767685157388,1.68677721,3211.5,3210.7,0.96548451]
[1767685157580,1.68677721,3211.5,3210.5,0.816]
[1767685157581,0.96732186,3211.4,3210.5,0.816]
[1767685159408,6.22800734,3211.3,3210.5,0.816]
[1767685159694,7.1953292,3211.3,3210.4,0.96548451]
[1767685159992,0.71953292,3211.2,3210.4,1.78148451]
[1767685160190,1.68685478,3211.2,3210.4,0.96548451]
[1767685160395,0.96732186,3211.1,3209.9,0.002]
[1767685160592,1.13600734,3211.0,3210.0,0.96548451]
[1767685160900,1.13600734,3211.0,3210.1,0.96548451]
[1767685161207,0.16868548,3211.0,3210.1,0.96548451]
[1767685161492,3.1143916,3210.9,3210.1,0.96548451]
[1767685162194,0.96732186,3210.9,3210.2,0.816]
[1767685163310,3.1144886,3210.8,3210.3,0.96548451]
[1767685164020,0.96732186,3210.7,3209.9,1.78348451]
[1767685164515,0.96732186,3210.7,3209.9,0.002]
[1767685165220,0.98579761,3210.7,3209.9,0.002]
[1767685165423,7.1968811,3210.5,3209.9,0.002]
[1767685165718,0.96732186,3210.4,3209.9,0.002]
[1767685167918,3.11497367,3210.3,3209.9,0.002]
[1767685169826,3.11497367,3210.3,3210.2,0.002]
[1767685170001,3.11497367,3210.3,3209.9,0.002]
[1767685170002,7.1972692,3210.3,3209.9,0.002]
[1767685170197,0.31149737,3210.2,3209.9,0.002]
[1767685170394,1.27881923,3210.2,3209.9,0.002]
[1767685172139,4.3939213,3210.2,3209.9,0.002]
[1767685173924,0.31149737,3210.2,3209.9,0.002]
[1767685174460,3.42657389,3210.2,3209.9,0.002]
[1767685175352,4.3949726,3210.2,3209.9,0.002]
[1767685175650,0.75099646,3210.1,3209.9,0.002]
[1767685176542,3.8661793,3210.1,3209.9,0.002]
[1767685176845,3.8661793,3210.1,3209.5,0.002]
[1767685176846,4.83457801,3210.1,3209.5,0.002]
[1767685177552,3.8661793,3210.1,3209.5,0.91033486]
[1767685178152,3.86616734,3210.1,3209.5,0.91033486]
[1767685178354,3.11517088,3210.1,3209.5,0.91033486]
[1767685178658,3.42664176,3210.2,3209.5,0.91033486]
[1767685178953,6.54178615,3210.2,3209.5,0.91033486]
[1767685179354,7.51018486,3210.2,3209.5,0.91033486]
[1767685179659,0.96839871,3210.1,3209.5,0.002]
[1767685180660,0.96839871,3210.0,3209.5,0.002]
[1767685181868,0.96839871,3209.5,3208.6,0.002]
[1767685182551,0.96839871,3209.3,3208.6,0.002]
[1767685182959,0.96839871,3209.3,3208.6,0.03316624]
[1767685183328,0.96839871,3209.5,3208.9,0.002]
[1767685183753,6.2317543,3209.9,3209.0,0.90833486]
[1767685183969,6.2317543,3209.9,3208.9,0.002]
[1767685183970,0.96839871,3209.7,3208.9,0.002]
[1767685184139,0.72509876,3209.8,3208.9,0.002]
[1767685184140,0.96839871,3209.5,3208.9,0.002]
[1767685184462,3.11584719,3209.4,3208.9,0.002]
[1767685185329,7.20009309,3209.4,3208.9,0.002]
[1767685185782,4.0842459,3209.4,3208.9,0.002]
[1767685185986,0.49002459,3209.3,3208.9,0.002]
[1767685186694,3.11604138,3209.2,3208.9,0.002]
[1767685187397,3.11604138,3209.2,3208.6,0.91033486]
[1767685187693,1.69349747,3209.8,3208.6,0.91033486]
[1767685187900,0.96839871,3209.6,3208.6,0.91033486]
[1767685188190,0.98687446,3209.6,3208.6,0.91033486]
[1767685188791,6.23150022,3209.5,3208.6,0.91033486]
[1767685188996,0.96839871,3209.3,3208.6,0.002]
[1767685190194,0.816,3209.2,3208.6,0.002]
[1767685190493,0.17843987,3209.1,3208.6,0.002]
[1767685190694,4.83612256,3209.1,3208.6,0.002]
[1767685190991,3.13471133,3209.0,3208.5,0.002]
[1767685191190,3.13471133,3209.0,3208.3,0.00377607]
[1767685191191,4.65768269,3208.8,3208.3,0.00377607]
[1767685191362,4.65768269,3208.8,3208.2,0.90833486]
[1767685191567,0.46576827,3208.7,3207.7,0.90833486]
[1767685191994,1.28176827,3208.7,3207.7,0.85833486]
[1767685192698,1.28176827,3208.7,3207.7,0.80833486]
[1767685193068,4.39832296,3208.7,3207.7,0.75833486]
[1767685193271,8.48327636,3208.7,3207.7,0.75833486]
[1767685193475,1.3140959,3208.6,3207.7,0.75833486]
[1767685194794,1.3140959,3208.6,3207.8,0.93950887]
[1767685195205,0.816,3208.7,3207.8,0.90833486]
[1767685195505,3.93253178,3208.7,3207.8,0.90833486]
[1767685196004,0.816,3208.7,3207.8,0.90833486]
[1767685196207,3.93253187,3208.7,3207.8,0.90833486]
[1767685196904,0.96839871,3208.6,3207.8,0.90833486]
[1767685197104,0.96839871,3208.6,3207.3,0.002]
[1767685197105,0.96839871,3208.5,3207.3,0.002]
[1767685197306,0.96839871,3208.5,3206.2,0.16018278]
[1767685197307,4.65768269,3207.6,3206.2,0.16018278]
[1767685197507,4.65768269,3208.0,3206.8,0.90833486]
[1767685197680,3.1167212,3208.5,3207.4,0.90833486]
[1767685198077,0.816,3208.4,3207.6,0.90833486]
[1767685198283,0.98687446,3208.3,3207.5,0.90833486]
[1767685198587,0.816,3208.2,3207.7,0.90833486]
[1767685198907,0.96839871,3208.8,3207.3,6.23573389]
[1767685198908,0.001,3209.0,3207.9,0.90833486]
[1767685199078,0.816,3208.9,3208.1,0.90833486]
[1767685199412,0.001,3209.0,3208.1,0.90833486]
[1767685199605,0.001,3209.0,3208.2,0.90833486]
[1767685202114,0.001,3209.0,3208.3,0.92887664]
[1767685204630,0.001,3209.0,3208.4,0.92887664]
[1767685205604,0.9748236,3209.0,3208.0,0.92887664]
[1767685205786,0.001,3209.0,3208.0,0.92887664]
[1767685205991,0.817,3209.0,3208.3,0.92887664]
[1767685206206,0.817,3209.0,3208.4,0.92887664]
[1767685206405,0.001,3209.0,3208.5,0.92887664]
[1767685206817,0.001,3209.0,3208.3,0.92887664]
[1767685207231,0.001,3209.0,3207.6,3.965732]
[1767685207232,0.816,3208.9,3208.4,0.92887664]
[1767685207726,0.816,3208.9,3208.1,3.1170772]
[1767685207727,0.816,3208.9,3207.9,0.92887664]
[1767685207899,1.97075354,3208.9,3208.0,0.92887664]
[1767685208095,0.99692994,3208.9,3208.2,0.92887664]
[1767685208301,0.816,3208.9,3208.4,0.92887664]
[1767685210334,0.816,3208.9,3208.1,0.92887664]
[1767685210510,1.7898236,3208.9,3208.1,0.92887664]
[1767685210712,1.7898236,3208.9,3208.1,4.04590964]
[1767685210911,0.816,3208.9,3208.3,0.92887664]
[1767685211513,0.001,3209.0,3208.4,0.92887664]
[1767685211720,0.001,3209.0,3208.5,0.92887664]
[1767685213323,0.9748236,3209.9,3208.9,0.92887664]
[1767685213635,0.001,3209.9,3209.1,0.92887664]
[1767685214433,0.001,3209.9,3209.2,0.92887664]
[1767685215003,0.9748236,3209.9,3209.0,0.92887664]
[1767685215431,0.9748236,3209.9,3208.7,0.92887664]
[1767685215746,0.9738236,3209.8,3208.8,0.92887664]
[1767685215950,0.9738236,3209.8,3208.9,0.92887664]
[1767685216154,0.9738236,3209.8,3208.9,1.64504613]
[1767685216664,0.001,3209.9,3209.0,0.92887664]
[1767685217644,0.001,3209.9,3208.9,0.71616949]
[1767685217645,0.001,3209.9,3209.2,0.92887664]
[1767685219352,0.001,3209.5,3209.2,0.92887664]
[1767685220145,0.001,3209.5,3208.9,0.92887664]
[1767685220749,0.001,3209.5,3208.9,4.04519866]
[1767685221233,0.001,3209.5,3208.9,0.92887664]
[1767685221638,0.001,3209.5,3209.0,3.11622406]
[1767685221845,0.001,3209.5,3208.9,4.04518022]
[1767685222922,0.001,3209.5,3208.9,0.92887664]
[1767685223831,0.001,3209.5,3208.9,4.04516078]
[1767685224924,0.001,3209.5,3209.0,0.92887664]
[1767685225127,0.001,3209.5,3209.2,0.92887664]
[1767685226327,0.001,3209.5,3209.0,0.40451608]
[1767685226532,0.001,3209.5,3209.1,0.92887664]
[1767685226935,0.001,3209.5,3208.9,0.92887664]
[1767685227132,0.001,3209.5,3208.9,4.045196]
[1767685227943,0.001,3209.5,3209.0,4.04510519]
[1767685228142,0.001,3209.5,3209.1,0.92887664]
[1767685228346,0.001,3209.5,3209.1,1.67618056]
[1767685228546,0.9748236,3209.9,3209.1,0.71614254]
[1767685228838,3.11532456,3211.0,3209.2,0.92887664]
[1767685228839,0.9738236,3210.5,3209.2,0.92887664]
[1767685229158,0.9738236,3210.4,3209.2,0.92887664]
[1767685229357,0.9738236,3210.3,3209.3,0.16450192]
[1767685229554,0.9738236,3210.3,3209.2,0.78087461]
[1767685230356,0.9738236,3210.3,3209.2,1.70975125]
[1767685230563,0.9738236,3210.3,3209.2,0.92887664]
[1767685231373,0.92896034,3210.2,3209.2,4.04488742]
[1767685232164,0.92896034,3210.2,3209.2,0.92887664]
[1767685232365,0.92896034,3210.1,3209.2,0.92887664]
[1767685233273,0.92896034,3210.1,3209.2,4.04490833]
[1767685233975,0.92896034,3210.1,3209.0,3.93223324]
[1767685233976,0.92896034,3210.1,3208.8,0.94386177]
[1767685234350,0.92896034,3209.9,3208.8,0.94386177]
[1767685234875,0.92896034,3209.9,3208.8,4.06027161]
[1767685235169,0.92896034,3209.7,3208.8,4.77795984]
[1767685235675,0.92896034,3209.7,3208.9,0.94386177]
[1767685237868,0.92896034,3209.6,3208.9,0.94386177]
[1767685239886,0.92896034,3209.9,3209.0,0.94386177]
[1767685240048,0.92896034,3209.9,3209.1,0.40601761]
[1767685240390,0.92896034,3209.9,3209.0,0.94386177]
[1767685240550,0.92896034,3209.8,3209.0,0.94386177]
[1767685241767,0.92896034,3209.8,3209.0,4.06008959]
[1767685242153,0.92896034,3209.8,3209.1,0.94386177]
[1767685242473,0.92896034,3209.8,3209.1,4.05998856]
[1767685242677,0.92896034,3209.8,3209.1,0.94386177]
[1767685242876,0.916,3210.0,3209.2,0.94386177]
[1767685243254,0.02827429,3210.0,3209.7,0.94386177]
[1767685246493,0.02827429,3210.0,3209.7,4.0593835]
[1767685247176,0.02827429,3210.0,3209.7,0.94386177]
[1767685247363,0.02827429,3210.0,3209.7,4.05938757]
[1767685247567,0.02827429,3210.0,3209.8,0.40593876]
[1767685248691,0.02827429,3210.0,3209.8,1.34980053]
[1767685248993,0.95723463,3210.0,3209.1,0.40800679]
[1767685249199,0.92896034,3209.9,3209.1,0.002]
[1767685250178,0.92896034,3209.9,3209.1,0.94586177]
[1767685250797,3.1154589,3209.8,3209.1,0.94586177]
[1767685250972,0.92896034,3209.7,3209.1,0.002]
[1767685251172,1.33340226,3209.7,3209.1,0.002]
[1767685251495,0.92896034,3209.6,3209.1,0.002]
[1767685253800,4.04471045,3209.5,3209.1,0.002]
[1767685254675,0.92896034,3209.4,3209.1,0.002]
[1767685254889,0.40444192,3209.7,3209.1,0.002]
[1767685255092,0.02827429,3210.0,3209.2,0.94386177]
[1767685255288,3.14353908,3210.0,3209.2,0.94386177]
[1767685255484,3.14353908,3210.0,3209.4,0.002]
[1767685255692,6.25880959,3210.0,3209.4,0.002]
[1767685256002,3.14353908,3210.0,3209.4,0.002]
[1767685256577,6.25880959,3210.0,3209.4,0.002]
[1767685256803,6.97758658,3210.0,3209.4,0.002]
[1767685257505,0.90038339,3209.9,3209.1,0.002]
[1767685257892,0.90038339,3209.7,3209.1,0.002]
[1767685259603,3.9314589,3209.8,3209.1,0.002]
[1767685259898,7.91635276,3209.8,3209.1,0.95447354]
[1767685260497,8.81673615,3209.8,3209.1,0.95447354]
[1767685260701,8.81673615,3209.8,3209.1,0.93777125]
[1767685261310,8.81673615,3209.8,3209.0,0.002]
[1767685262416,8.81673615,3209.8,3209.0,0.95101315]
[1767685262790,0.92188607,3209.6,3209.0,0.002]
[1767685262997,0.92188607,3209.6,3208.1,3.1171029]
[1767685263294,0.92188607,3209.4,3208.2,0.94901315]
[1767685263489,0.01847575,3209.5,3208.2,0.94901315]
[1767685263490,0.92188607,3209.2,3208.2,0.94901315]
[1767685263695,0.92188607,3209.0,3208.2,0.94901315]
[1767685264107,6.23266538,3208.9,3208.2,0.94901315]
[1767685264311,3.11633269,3208.9,3208.2,0.94901315]
[1767685264512,6.23266538,3208.9,3207.9,0.94901315]
[1767685264714,3.11626944,3209.0,3207.9,0.94901315]
[1767685265122,3.11626944,3209.0,3208.1,0.94901315]
[1767685265320,6.23253888,3209.0,3208.1,0.94901315]
[1767685265732,0.92188607,3209.1,3208.1,0.94901315]
[1767685265940,3.11613509,3209.2,3208.2,0.98018327]
[1767685266234,0.816,3209.3,3208.3,0.94901315]
[1767685266434,0.90014937,3209.7,3208.5,0.94901315]
[1767685266435,3.11565304,3209.6,3208.5,0.94901315]
[1767685266722,3.11565304,3209.6,3208.4,0.72141952]
[1767685266723,3.11565304,3209.6,3208.7,0.94901315]
[1767685267025,4.85346865,3209.7,3208.7,0.94901315]
[1767685268033,3.93158258,3209.7,3208.7,0.94901315]
[1767685268242,3.11545091,3209.9,3208.9,0.94901315]
[1767685268443,3.1435616,3210.0,3209.1,0.94901315]
[1767685268629,0.02827429,3210.0,3209.1,0.94901315]
[1767685268807,0.02827429,3210.0,3209.1,0.98017453]
[1767685269010,0.02827429,3210.0,3209.1,0.94901315]
[1767685269205,0.02827429,3210.0,3209.1,0.98017453]
[1767685269412,0.92188607,3210.9,3209.2,14.961183]
[1767685269648,0.92188607,3210.9,3209.0,0.40966073]
[1767685269649,0.001,3211.0,3210.0,0.94901315]
[1767685270219,0.001,3211.0,3210.2,0.94901315]
[1767685270527,0.816,3212.0,3210.8,0.94901315]
[1767685270708,6.22696812,3211.9,3210.8,0.94701315]
[1767685270912,0.70429681,3211.8,3210.8,0.94701315]
[1767685271619,0.70429681,3211.8,3209.5,0.01847575]
[1767685271620,0.94036182,3211.7,3209.0,0.56966073]
[1767685271918,0.92188607,3211.4,3209.9,0.94901315]
[1767685272135,0.94036182,3211.3,3209.9,0.94901315]
[1767685272313,0.92188607,3211.1,3209.9,0.94901315]
[1767685272514,0.92188607,3210.9,3209.6,0.94901315]
[1767685274215,6.2287832,3210.9,3209.6,0.94901315]
[1767685274837,3.1143916,3210.9,3209.7,0.94901315]
[1767685275153,0.92188607,3211.2,3209.7,0.94901315]
[1767685275154,3.114113,3211.2,3209.7,0.94901315]
[1767685275517,6.228226,3211.2,3209.7,0.94901315]
[1767685275748,6.9326486,3211.2,3209.9,0.94901315]
[1767685276680,0.7044226,3211.2,3210.0,0.94901315]
[1767685276842,3.11361584,3211.7,3210.2,0.94901315]
[1767685277251,4.03543435,3211.8,3210.2,0.94901315]
[1767685277450,3.11354828,3211.8,3210.2,0.94901315]
[1767685277756,3.11317693,3212.2,3210.4,0.94901315]
[1767685277946,3.11293736,3212.4,3210.8,0.94901315]
[1767685278271,3.11286591,3212.5,3211.0,0.94901315]
[1767685278576,0.816,3212.6,3211.0,0.94901315]
[1767685278771,3.92874687,3212.6,3211.2,0.94901315]
[1767685278973,0.39287469,3212.5,3211.4,0.94901315]
[1767685279274,0.39287469,3212.5,3211.6,0.94901315]
[1767685281274,0.001,3212.2,3211.6,0.94901315]
[1767685281970,0.92288607,3212.2,3211.3,0.71774084]
[1767685282275,0.92288607,3212.2,3211.2,0.816]
[1767685282476,0.92288607,3212.2,3211.1,0.816]
[1767685282969,4.03511417,3212.1,3211.1,0.816]
[1767685283173,0.92188607,3212.0,3210.8,7.36655705]
[1767685283373,0.92188607,3212.0,3210.9,0.816]
[1767685283585,0.92188607,3211.9,3211.0,0.3930476]
[1767685283801,0.92188607,3211.9,3210.9,0.816]
[1767685284296,0.92188607,3211.9,3211.0,3.11427582]
[1767685284475,0.92188607,3211.9,3211.0,3.14541876]
[1767685284676,0.92188607,3211.9,3211.1,3.11419537]
[1767685284878,0.001,3212.2,3211.1,3.11419537]
[1767685285086,0.001,3212.2,3211.2,3.73688588]
[1767685285797,0.001,3212.2,3211.2,0.62284859]
[1767685285965,0.001,3212.2,3211.0,0.94901315]
[1767685286382,0.001,3212.2,3211.1,0.94901315]
[1767685286585,0.001,3212.2,3211.2,0.94901315]
[1767685290298,0.001,3212.2,3211.2,0.94701315]
[1767685290485,0.92288607,3212.2,3210.3,0.94901315]
[1767685290799,0.01847575,3212.1,3210.5,0.94901315]
[1767685291014,0.816,3212.0,3210.7,0.94901315]
[1767685291486,6.22684392,3211.9,3210.7,0.94901315]
[1767685291691,3.11342196,3211.9,3210.8,0.977743]
[1767685292215,3.11342196,3211.9,3211.0,0.977743]
[1767685292721,3.11342196,3211.9,3211.1,0.03114197]
[1767685293820,3.92935815,3212.0,3211.1,0.03114197]
[1767685294017,7.0427163,3212.0,3211.1,1.00888497]
[1767685294210,0.93441163,3211.9,3210.8,0.977743]
[1767685294518,0.95288738,3211.9,3210.6,0.99250132]
[1767685294747,0.95288738,3211.9,3210.6,0.17650132]
[1767685295023,0.95288738,3211.7,3210.4,0.977743]
[1767685295190,0.93441163,3211.7,3210.4,0.977743]
[1767685295826,6.22742558,3211.6,3210.4,0.977743]
[1767685297720,3.11371279,3211.6,3210.5,0.977743]
[1767685298030,3.11365785,3211.7,3210.7,0.977743]
[1767685298392,3.11365785,3211.7,3210.9,0.977743]